[Event "Uppsala GM June 2022"]
[Site "Uppsala"]
[Date "2022.06.14"]
[Round "2.3"]
[White "Ernst, Thomas"]
[Black "Sorensen, Hampus"]
[Result "1/2-1/2"]
[ECO "C70"]
[WhiteElo "2300"]
[BlackElo "2372"]
[Annotator "RC"]
[PlyCount "145"]
[EventDate "2022.06.09"]
[EventType "tourn"]
[EventCountry "SWE"]
[SourceTitle "playchess.com"]
[Source "ChessBase"]
[SourceQuality "1"]
[TimeControl "5400+30"]

1. e4 {[%emt 0:00:04]} e5 {[%emt 0:00:05]} 2. Nf3 {[%emt 0:00:07]} Nc6 {[%emt 0:00:03]} 3. Bb5 {[%emt 0:00:08]} a6 {[%emt 0:00:04]} 4. Ba4 {[%emt 0:00:06]} g6 {[%emt 0:00:14]} 5. c3 {[%emt 0:00:49]} Bg7 {[%emt 0:00:08]} 6. d4 {[%emt 0:00:16]} exd4 {[%emt 0:00:10]} 7. cxd4 {[%emt 0:00:08]} b5 {[%emt 0:00:09]} 8. Bb3 {[%emt 0:10:05]} Nge7 {[%emt 0:00:21]} 9. d5 {[%emt 0:00:09]} Na5 {[%emt 0:01:14]} 10. Bc2 {[%emt 0:00:06]} d6 {[%emt 0:06:23]} 11. O-O {[%emt 0:05:05]} O-O {[%emt 0:01:47]} 12. Nc3 {[%emt 0:02:58]} h6 {[%emt 0:07:02]} 13. Rb1 {[%emt 0:03:39]} c5 {[%emt 0:08:29]} 14. dxc6 {[%emt 0:04:03]} Nexc6 {[%emt 0:00:13]} 15. Nd5 {[%emt 0:07:40]} Nc4 {[%emt 0:08:48]} 16. b3 {[%emt 0:06:17]} Nb6 {[%emt 0:19:36]} 17. Nxb6 {[%emt 0:03:23]} Qxb6 {[%emt 0:00:02]} 18. Be3 {[%emt 0:00:10]} Qc7 {[%emt 0:04:21]} 19. Rc1 {[%emt 0:00:30]} Bb7 {[%emt 0:01:44]} 20. Qd2 {[%emt 0:04:16]} Kh7 {[%emt 0:39:37]} 21. h4 {[%emt 0:03:29]} h5 {[%emt 0:00:00]} 22. Bb1 {[%emt 0:05:25]} Qe7 {[%emt 0:00:00]} 23. Ng5+ {[%emt 0:02:26]} Kg8 {[%emt 0:00:00]} 24. f4 {[%emt 0:00:27]} Rad8 {[%emt 0:00:00]} 25. Qf2 {[%emt 0:05:56]} Rd7 {[%emt 0:00:00]} 26. e5 {[%emt 0:03:09]} Qe8 {[%emt 0:00:00]} 27. Rce1 {[%emt 0:09:01]} dxe5 {[%emt 0:00:00]} 28. Bc5 {[%emt 0:00:09]} Ne7 {[%emt 0:00:00]} 29. fxe5 {[%emt 0:00:44]} Bd5 {[%emt 0:00:00]} 30. Qg3 {[%emt 0:04:06]} Kh8 {[%emt 0:01:27]} 31. Kh2 {[%emt 0:02:11]} Rg8 {[%emt 0:00:28]} 32. Nxf7+ {[%emt 0:07:26]} Bxf7 {[%emt 0:00:15]} 33. Rxf7 {[%emt 0:00:06]} Nf5 {[%emt 0:02:37]} 34. Bxf5 {[%emt 0:00:34]} Qxf7 {[%emt 0:00:51]} 35. Bxd7 {[%emt 0:00:27]} Qxd7 {[%emt 0:00:00]} 36. e6 {[%emt 0:00:33]} Qc6 {[%emt 0:00:13]} 37. b4 {[%emt 0:02:05]} Kh7 {[%emt 0:00:42]} 38. e7 {[%emt 0:00:46]} Re8 {[%emt 0:00:09]} 39. Qf3 {[%emt 0:01:13]} Qxf3 {[%emt 0:02:14]} 40. gxf3 {[%emt 0:00:04]} Bf6 {[%emt 0:00:00]} 41. Kg3 {[%emt 0:01:25]} Kg7 {[%emt 0:00:56]} 42. Re6 {[%emt 0:00:12]} Kf7 {[%emt 0:00:18]} 43. Rxa6 {[%emt 0:00:32]} Bxe7 {[%emt 0:00:02]} 44. Rb6 {[%emt 0:00:56]} Bxc5 {[%emt 0:00:38]} 45. bxc5 {[%emt 0:00:05]} Re2 {[%emt 0:00:12]} 46. Rxb5 {[%emt 0:00:51]} Rxa2 {[%emt 0:00:01]} 47. Kf4 {[%emt 0:00:27]} Re2 {[%emt 0:01:36]} 48. Rb7+ {[%emt 0:00:44]} Ke6 {[%emt 0:00:27]} 49. Rb6+ {[%emt 0:00:08]} Kd5 {[%emt 0:00:41]} 50. Rxg6 {[%emt 0:00:11]} Kxc5 {[%emt 0:00:01]} 51. Kg5 {[%emt 0:00:42]} Kd5 {[%emt 0:00:39]} 52. Kxh5 {[%emt 0:00:37]} Ke5 {[%emt 0:00:05]} 53. Rg8 {[%emt 0:01:36]} Kf6 {[%emt 0:00:35]} 54. Kh6 {[%emt 0:00:22]} Kf7 {[%emt 0:00:08]} 55. Rg4 {[%emt 0:00:36]} Re6+ {[%emt 0:00:37]} 56. Kh7 {[%emt 0:00:22]} Rf6 {[%emt 0:00:15]} 57. f4 {[%emt 0:00:34]} Rf5 {[%emt 0:00:06]} 58. Kh6 {[%emt 0:00:20]} Kf6 {[%emt 0:00:58]} 59. h5 {[%emt 0:00:40]} Kf7 {[%emt 0:00:00]} 60. Rh4 {[%emt 0:00:34]} Kf6 {[%emt 0:00:10]} 61. Kh7 {[%emt 0:00:44]} Kf7 {[%emt 0:00:02]} 62. h6 {[%emt 0:00:19]} Rf6 {[%emt 0:00:05]} 63. Rg4 {[%emt 0:00:50]} Kf8 {[%emt 0:02:39]} 64. Rg8+ {[%emt 0:03:52]} Kf7 {[%emt 0:00:03]} 65. Rg7+ {[%emt 0:00:37]} Kf8 {[%emt 0:00:01]} 66. Rg8+ {[%emt 0:01:31]} Kf7 {[%emt 0:00:01]} 67. Rg7+ {[%emt 0:00:16]} Kf8 {[%emt 0:00:02]} 68. Rg4 {[%emt 0:00:09]} Kf7 {[%emt 0:00:06]} 69. Rh4 {[%emt 0:00:23]} Rf5 {[%emt 0:00:46]} 70. Kh8 {[%emt 0:00:37]} Kf8 {[%emt 0:01:13]} 71. Kh7 {[%emt 0:01:24]} Kf7 {[%emt 0:00:04]} 72. Rg4 {[%emt 0:00:11]} Rf6 {[%emt 0:00:11]} 73. Rg7+ {[%emt 0:00:20]} 1/2-1/2

[Event "Uppsala GM June 2022"]
[Site "Uppsala"]
[Date "2022.06.14"]
[Round "2.4"]
[White "Roshka, Yevgeniy"]
[Black "Larkin, Vladyslav"]
[Result "0-1"]
[ECO "A20"]
[WhiteElo "2468"]
[BlackElo "2430"]
[Annotator "RC"]
[PlyCount "82"]
[EventDate "2022.06.09"]
[EventType "tourn"]
[EventCountry "SWE"]
[SourceTitle "playchess.com"]
[Source "ChessBase"]
[SourceQuality "1"]
[TimeControl "5400+30"]

1. c4 {[%emt 0:27:48]} e5 {[%emt 0:01:20]} 2. g3 {[%emt 0:00:09]} Nf6 {[%emt 0:01:22]} 3. Bg2 {[%emt 0:00:08]} c6 {[%emt 0:00:05]} 4. Nf3 {[%emt 0:01:01]} e4 {[%emt 0:02:00]} 5. Nd4 {[%emt 0:00:04]} d5 {[%emt 0:00:18]} 6. cxd5 {[%emt 0:01:13]} Qxd5 {[%emt 0:01:47]} 7. Nc2 {[%emt 0:00:17]} Qh5 {[%emt 0:00:10]} 8. h3 {[%emt 0:00:09]} Bc5 {[%emt 0:04:55]} 9. d4 {[%emt 0:05:28]} exd3 {[%emt 0:00:13]} 10. Qxd3 {[%emt 0:00:02]} O-O {[%emt 0:00:59]} 11. Nc3 {[%emt 0:09:30]} Na6 {[%emt 0:01:08]} 12. g4 {[%emt 0:05:11]} Qh4 {[%emt 0:21:44]} 13. Qf3 {[%emt 0:10:55]} Be6 {[%emt 0:01:56]} 14. Bf4 {[%emt 0:05:10]} Rad8 {[%emt 0:00:18]} 15. O-O {[%emt 0:04:04]} Nd5 {[%emt 0:02:37]} 16. Bg3 {[%emt 0:10:25]} Qe7 {[%emt 0:00:26]} 17. Nxd5 {[%emt 0:08:54]} Bxd5 {[%emt 0:01:41]} 18. e4 {[%emt 0:01:02]} Bc4 {[%emt 0:04:07]} 19. Rfc1 {[%emt 0:00:48]} Be6 {[%emt 0:06:08]} 20. Ne3 {[%emt 0:03:53]} Rd2 {[%emt 0:10:18]} 21. Nf5 {[%emt 0:00:17]} Bxf5 {[%emt 0:00:28]} 22. exf5 {[%emt 0:00:01]} Bd6 {[%emt 0:11:15]} 23. Qc3 {[%emt 0:02:17]} Bb4 {[%emt 0:00:05]} 24. Qb3 {[%emt 0:00:56]} Qf6 {[%emt 0:01:45]} 25. Rab1 {[%emt 0:01:00]} Qd4 {[%emt 0:00:10]} 26. Rc4 {[%emt 0:00:13]} Qb6 {[%emt 0:00:28]} 27. Qf3 {[%emt 0:01:18]} Rfd8 {[%emt 0:01:36]} 28. Bf1 {[%emt 0:01:04]} Bd6 {[%emt 0:02:45]} 29. Bh4 {[%emt 0:00:22]} Re8 {[%emt 0:02:45]} 30. f6 {[%emt 0:00:36]} g6 {[%emt 0:00:42]} 31. Re4 {[%emt 0:00:30]} Rxe4 {[%emt 0:03:16]} 32. Qxe4 {[%emt 0:00:01]} Nc7 {[%emt 0:00:08]} 33. Re1 {[%emt 0:01:39]} Qd4 {[%emt 0:01:38]} 34. Qxd4 {[%emt 0:00:30]} Rxd4 {[%emt 0:00:05]} 35. Bg3 {[%emt 0:00:07]} Bxg3 {[%emt 0:01:17]} 36. fxg3 {[%emt 0:00:01]} Ne6 {[%emt 0:08:00]} 37. g5 {[%emt 0:00:06]} h6 {[%emt 0:00:43]} 38. gxh6 {[%emt 0:00:04]} g5 {[%emt 0:01:59]} 39. Be2 {[%emt 0:01:10]} Re4 {[%emt 0:02:13]} 40. h7+ {[%emt 0:02:07]} Kh8 {[%emt 0:05:40]} 41. Kf2 Nc5 {[%emt 0:00:30]} 0-1

[Event "Uppsala GM June 2022"]
[Site "Uppsala"]
[Date "2022.06.14"]
[Round "2.5"]
[White "Falkevall, Axel"]
[Black "Peng, Li Min"]
[Result "0-1"]
[ECO "C02"]
[WhiteElo "2290"]
[BlackElo "2506"]
[Annotator "RC"]
[PlyCount "82"]
[EventDate "2022.06.09"]
[EventType "tourn"]
[EventCountry "SWE"]
[SourceTitle "playchess.com"]
[Source "ChessBase"]
[SourceQuality "1"]
[TimeControl "5400+30"]

1. e4 {[%emt 0:00:08]} e6 {[%emt 0:00:06]} 2. d4 {[%emt 0:00:05]} d5 {[%emt 0:00:04]} 3. e5 {[%emt 0:00:05]} c5 {[%emt 0:00:04]} 4. c3 {[%emt 0:00:05]} Nc6 {[%emt 0:00:03]} 5. Nf3 {[%emt 0:00:06]} Bd7 {[%emt 0:00:05]} 6. Be2 {[%emt 0:00:17]} Nge7 {[%emt 0:00:06]} 7. O-O {[%emt 0:00:17]} Ng6 {[%emt 0:00:04]} 8. g3 {[%emt 0:00:32]} Be7 {[%emt 0:00:04]} 9. h4 {[%emt 0:00:16]} O-O {[%emt 0:00:05]} 10. h5 {[%emt 0:02:51]} Nh8 {[%emt 0:00:01]} 11. h6 {[%emt 0:05:01]} g5 {[%emt 0:00:02]} 12. Be3 {[%emt 0:02:52]} cxd4 {[%emt 0:00:02]} 13. cxd4 {[%emt 0:00:39]} f5 {[%emt 0:00:02]} 14. exf6 {[%emt 0:02:48]} Bxf6 {[%emt 0:00:03]} 15. Nc3 {[%emt 0:08:33]} Nf7 {[%emt 0:00:04]} 16. Kg2 {[%emt 0:08:10]} Nxh6 {[%emt 0:01:03]} 17. Rh1 {[%emt 0:01:35]} Nf5 {[%emt 0:00:36]} 18. Bd3 {[%emt 0:01:38]} Rf7 {[%emt 0:36:26]} 19. Rh5 {[%emt 0:06:58]} Rg7 {[%emt 0:09:06]} 20. g4 {[%emt 0:06:55]} Be8 {[%emt 0:03:30]} 21. Rh2 {[%emt 0:06:33]} Nd6 {[%emt 0:11:27]} 22. Qh1 {[%emt 0:04:28]} Qe7 {[%emt 0:38:27]} 23. Rh6 {[%emt 0:03:54]} Nb4 {[%emt 0:00:00]} 24. Bb1 {[%emt 0:02:55]} b5 {[%emt 0:00:00]} 25. a3 {[%emt 0:16:15]} Nc6 {[%emt 0:00:00]} 26. Bd3 {[%emt 0:00:45]} b4 {[%emt 0:00:00]} 27. Ne2 {[%emt 0:04:47]} Ne4 {[%emt 0:00:00]} 28. Qh2 {[%emt 0:02:06]} Bg6 {[%emt 0:00:00]} 29. Rc1 {[%emt 0:02:17]} Nd8 {[%emt 0:00:00]} 30. Nd2 {[%emt 0:02:04]} Nf7 {[%emt 0:00:00]} 31. Rxg6 {[%emt 0:00:25]} hxg6 {[%emt 0:00:00]} 32. Nxe4 {[%emt 0:00:28]} dxe4 {[%emt 0:00:00]} 33. Bxe4 {[%emt 0:00:03]} Rd8 {[%emt 0:00:00]} 34. axb4 {[%emt 0:05:56]} Qxb4 {[%emt 0:00:00]} 35. Rh1 {[%emt 0:00:59]} Nd6 {[%emt 0:00:00]} 36. Qh8+ {[%emt 0:01:20]} Kf7 {[%emt 0:00:00]} 37. Bxg6+ {[%emt 0:00:26]} Ke7 {[%emt 0:00:00]} 38. Qh6 {[%emt 0:00:29]} Rdg8 {[%emt 0:00:00]} 39. Bd3 {[%emt 0:00:57]} Qb7+ {[%emt 0:00:00]} 40. f3 {[%emt 0:00:18]} Qb3 {[%emt 0:00:00]} 41. Bb1 {[%emt 0:02:05]} Qxe3 {[%emt 0:00:00]} 0-1

[Event "Uppsala GM June 2022"]
[Site "Uppsala"]
[Date "2022.06.15"]
[Round "3.1"]
[White "Nilsson, Joakim"]
[Black "Von Bahr, Oskar"]
[Result "0-1"]
[ECO "D91"]
[WhiteElo "2237"]
[BlackElo "2373"]
[Annotator "TA"]
[PlyCount "92"]
[EventDate "2022.06.09"]
[EventType "tourn"]
[EventCountry "SWE"]
[SourceTitle "playchess.com"]
[Source "ChessBase"]
[SourceQuality "1"]
[TimeControl "5400+30"]

{[%evp 18,92,0,-5,0,-4,-6,-9,0,-18,0,-17,-16,-42,-11,-9,-10,-42,-40,-48,-45,-48,-57,-42,-42,-46,-46,-48,-27,-52,-52,-45,-40,-36,-50,-48,-47,-56,-51,-45,-50,-75,-64,-81,-70,-69,-60,-114,-113,-134,-134,-128,-128,-132,-128,-129,-133,-133,-133,-242,-244,-244,-244,-308,-310,-311,-302,-356,-356,-356,-331,-392,-302,-519,-500,-1120,-954]} 1. d4 {[%emt 0:08:13]} Nf6 {[%emt 0:00:05]} 2. c4 {[%emt 0:00:06]} g6 {[%emt 0:00:08]} 3. Nc3 {[%emt 0:00:09]} d5 {[%emt 0:00:06]} 4. Nf3 {[%emt 0:00:05]} Bg7 {[%emt 0:00:11]} 5. Bg5 {[%emt 0:00:08]} Ne4 {[%emt 0:00:34]} 6. cxd5 {[%emt 0:00:38]} Nxg5 {[%emt 0:00:09]} 7. Nxg5 {[%emt 0:00:07]} e6 {[%emt 0:00:08]} 8. Qd2 {[%emt 0:00:17]} h6 {[%emt 0:01:10]} 9. Nf3 {[%emt 0:00:05]} exd5 {[%emt 0:00:13]} 10. e3 {[%emt 0:00:09]} a5 {[%emt 0:04:04] D91: Grünfeld: 4 Nf3 Bg7 5 Bg5.} 11. Be2 {[%emt 0:00:34]} c6 {[%emt 0:00:13]} 12. O-O {[%emt 0:00:13]} O-O {[%emt 0:01:49] The position is equal.} 13. a3 {[%emt 0:00:58] [#]} Be6 $146 {[%emt 0:02:22]} ({Predecessor:} 13... Nd7 14. Rfc1 Re8 15. Na4 Nf6 16. Nc5 b6 17. Nd3 Ne4 18. Qc2 c5 19. Nde5 Bf5 {0-1 (43) Kutsykh,M (2285)-Mozharov,M (2475) Odessa 2009}) 14. b4 {[%emt 0:00:25]} Nd7 {[%emt 0:04:26]} 15. Qb2 {[%emt 0:02:17]} axb4 {[%emt 0:04:06]} 16. axb4 {[%emt 0:00:56]} Qe7 {[%emt 0:05:52]} 17. b5 {[%emt 0:19:08]} c5 {[%emt 0:02:45]} 18. Rfd1 {[%emt 0:01:04]} Nb6 {[%emt 0:02:40]} 19. h3 {[%emt 0:12:00]} Rfc8 {[%emt 0:01:26]} 20. Rxa8 {[%emt 0:02:48]} Rxa8 {[%emt 0:01:14]} 21. Ra1 {[%emt 0:08:14]} Rxa1+ {[%emt 0:01:15]} 22. Qxa1 {[%emt 0:01:07]} cxd4 {[%emt 0:01:49]} (22... Nc8 $5 {[%cal Rc5d4]}) 23. exd4 {[%emt 0:00:14]} Qb4 {[%emt 0:03:31]} 24. Nd1 {[%emt 0:00:48]} Qa4 {[%emt 0:12:29] Prevents Qa7.} 25. Qxa4 {[%emt 0:06:59]} Nxa4 {[%emt 0:00:06]} 26. Bd3 {[%emt 0:00:20]} Kf8 {[%emt 0:02:22]} 27. Kf1 {[%emt 0:00:42]} Ke7 {[%emt 0:01:39]} 28. Ke2 {[%emt 0:00:48]} Kd6 {[%emt 0:00:42]} 29. Bc2 {[%emt 0:00:24]} Nb6 {[%emt 0:00:20]} 30. Nc3 {[%emt 0:00:13]} f5 {[%emt 0:05:25][%cal Bf7f5,Bf5f4][%mdl 32]} 31. Kd3 {[%emt 0:09:43]} g5 {[%emt 0:02:15]} 32. Nd2 {[%emt 0:02:45] White is on the road to losing.} ({White should play} 32. Ne2 $15) 32... f4 $17 {[%emt 0:05:36] [#] ...Bf5+ is the strong threat.} 33. Nb3 {[%emt 0:00:20]} Nc4 {[%emt 0:03:04] Strongly threatening ...Bf5+.} 34. Ke2 {[%emt 0:00:23]} b6 {[%emt 0:01:50][%cal Bb7b6,Bb6a5][%mdl 32]} 35. Bg6 {[%emt 0:01:04]} Na3 {[%emt 0:05:56]} 36. Kd2 {[%emt 0:05:28]} Bd7 {[%emt 0:07:08]} 37. Bd3 {[%emt 0:05:06]} Nc4+ {[%emt 0:01:37]} 38. Ke1 {[%emt 0:04:24]} (38. Kc2 $17) 38... Na5 $19 {[%emt 0:02:09]} 39. Nxa5 {[%emt 0:04:33]} bxa5 {[%emt 0:00:12][%mdl 4096] Endgame KBB-KBN} 40. Ne2 {[%emt 0:00:06]} f3 {[%emt 0:01:34]} 41. gxf3 {[%emt 0:00:28]} Bxh3 {[%emt 0:00:23]} 42. f4 {[%emt 0:00:45] [#]} gxf4 {[%emt 0:01:19]} 43. Nxf4 {[%emt 0:00:02]} Bg4 {[%emt 0:02:18]} 44. Be2 {[%emt 0:03:27]} Bd7 {[%emt 0:02:18]} 45. Bf3 $2 {[%emt 0:00:51]} (45. b6 Bxd4 46. b7) 45... Bxd4 {[%emt 0:00:32]} 46. Bxd5 {[%emt 0:01:06]} (46. Nxd5 $142 a4 47. Kd2) 46... Be5 {[%emt 0:01:43] Weighted Error Value: White=0.36/Black=0.06 (flawless)} 0-1

[Event "Uppsala GM June 2022"]
[Site "Uppsala"]
[Date "2022.06.15"]
[Round "3.2"]
[White "Chatalbashev, Boris"]
[Black "Ernst, Thomas"]
[Result "1-0"]
[ECO "D91"]
[WhiteElo "2536"]
[BlackElo "2300"]
[Annotator "TA"]
[PlyCount "43"]
[EventDate "2022.06.09"]
[EventType "tourn"]
[EventCountry "SWE"]
[SourceTitle "playchess.com"]
[Source "ChessBase"]
[SourceQuality "1"]
[TimeControl "5400+30"]

{[%evp 15,43,30,31,25,34,44,24,8,15,0,2,2,0,10,58,64,87,18,17,23,126,117,166,181,222,216,387,390,522,507]} 1. d4 {[%emt 0:00:08]} Nf6 {[%emt 1:31:00]} 2. c4 {[%emt 0:00:07]} g6 {[%emt 0:00:00]} 3. Nc3 {[%emt 0:00:06]} d5 {[%emt 0:00:00]} 4. Bg5 {[%emt 0:00:14]} Ne4 {[%emt 0:00:00]} 5. Bh4 {[%emt 0:00:06]} Nxc3 {[%emt 0:00:00]} 6. bxc3 {[%emt 0:00:16]} c5 {[%emt 0:00:00]} 7. e3 {[%emt 0:00:28]} Bg7 {[%emt 0:00:00]} 8. Nf3 {[%emt 0:00:25]} Nc6 {[%emt 0:00:00]} 9. Be2 {[%emt 0:01:13] D91: Grünfeld: 4 Nf3 Bg7 5 Bg5.} cxd4 {[%emt 0:00:00]} 10. cxd4 {[%emt 0:00:54]} dxc4 {[%emt 0:00:00] [#]} 11. O-O $146 {[%emt 0:01:10] White has an edge.} ({Predecessor:} 11. Bxc4 b5 12. Be2 a6 13. O-O O-O 14. Rc1 Na5 15. Qd2 Re8 16. Qb4 Bf6 17. Bg3 Nc4 18. Bxc4 bxc4 19. Qxc4 {1-0 (40) Zubov,A (2614)-Savchenko,B (2633) Poti 2016}) 11... Na5 {[%emt 0:00:00]} 12. Nd2 {[%emt 0:04:56]} b5 {[%emt 0:00:00]} 13. a4 {[%emt 0:05:04]} a6 {[%emt 0:00:00]} 14. Bf3 {[%emt 0:03:43]} Rb8 {[%emt 0:00:00]} (14... Bb7 $11) 15. axb5 $14 {[%emt 0:00:09]} Rxb5 {[%emt 0:00:00]} 16. Ne4 {[%emt 0:08:47]} (16. Qa4 $16) 16... O-O $1 $11 {[%emt 0:00:00]} 17. Nc3 {[%emt 0:00:13][%cal Be4c3,Bc3d5,Bd5e7][%mdl 1056] White has compensation.} Rb8 {[%emt 0:00:00]} (17... Nb3 $1 $11 {keeps the balance.}) 18. Nd5 $36 {[%emt 0:05:43][%mdl 2048] Black is under strong pressure.} Nc6 {[%emt 0:00:00]} (18... f6 $16) 19. Qa4 $18 {[%emt 0:01:45][%csl LRc4,LRc6]} Bb7 {[%emt 0:00:00]} 20. Rfb1 {[%emt 0:05:18][%cal Ob1b7] Strongly threatening Rxb7!} Qd6 $2 {[%emt 0:00:00]} (20... Ba8 21. Qxc4 a5 22. Rxb8 Qxb8 23. Bxe7 (23. Nxe7+ Nxe7 24. Bxe7 Re8 $16) 23... Qb2) 21. Rb6 {[%emt 0:06:50]} Rfe8 {[%emt 0:00:00] [#]} 22. Nxe7+ $1 {[%emt 0:04:53][%mdl 512] Weighted Error Value: White=0.10 (very precise) /Black=0.44} 1-0